[Event "*** Titled Tuesday Blitz"]
[Site "Chess.com"]
[Date "2018.05.01"]
[Round "2"]
[White "FairChess_on_YouTube"]
[Black "BrizuelaRonald"]
[Result "1-0"]
[WhiteElo "2877"]
[BlackElo "2515"]
[TimeControl "180+2"]
[EndTime "13:31:00 PDT"]
[Termination "FairChess_on_YouTube won by resignation"]

1. d4 {[%clk 0:03:01.9]} 1... Nf6 {[%clk 0:02:58.6]} 2. Bg5 {[%clk 0:03:02.2]}
2... d5 {[%clk 0:02:56.5]} 3. Nd2 {[%clk 0:03:02.6]} 3... e6 {[%clk 0:02:54.4]}
4. e3 {[%clk 0:03:01.9]} 4... c5 {[%clk 0:02:55.7]} 5. c3 {[%clk 0:03:02.5]}
5... Nc6 {[%clk 0:02:56.9]} 6. Ngf3 {[%clk 0:03:03.2]} 6... Bd6 {[%clk
0:02:55.6]} 7. Bb5 {[%clk 0:03:02.1]} 7... O-O {[%clk 0:02:48.9]} 8. O-O {[%clk
0:03:02.4]} 8... Qb6 {[%clk 0:02:40.5]} 9. a4 {[%clk 0:02:49.1]} 9... a6 {[%clk
0:02:40.6]} 10. Bxc6 {[%clk 0:02:46.2]} 10... bxc6 {[%clk 0:02:37.6]} 11. Qc2
{[%clk 0:02:43.9]} 11... Nd7 {[%clk 0:02:30.9]} 12. Bf4 {[%clk 0:02:35.5]} 12...
Bxf4 {[%clk 0:02:28.3]} 13. exf4 {[%clk 0:02:37.4]} 13... Rb8 {[%clk 0:02:24.5]}
14. Rfb1 {[%clk 0:02:32.8]} 14... a5 {[%clk 0:02:21.2]} 15. Ra3 {[%clk
0:02:25.7]} 15... Ba6 {[%clk 0:02:13.8]} 16. h4 {[%clk 0:02:19.5]} 16... Qc7
{[%clk 0:02:03.1]} 17. g3 {[%clk 0:02:15.2]} 17... cxd4 {[%clk 0:01:55.3]} 18.
cxd4 {[%clk 0:02:15.5]} 18... c5 {[%clk 0:01:55.1]} 19. Ng5 {[%clk 0:01:55.9]}
19... g6 {[%clk 0:01:54.6]} 20. h5 {[%clk 0:01:56.6]} 20... Rfc8 {[%clk
0:01:50.9]} 21. hxg6 {[%clk 0:01:55.7]} 21... hxg6 {[%clk 0:01:51.4]} 22. Nxe6
{[%clk 0:01:50]} 22... Qb6 {[%clk 0:01:46.3]} 23. Nxc5 {[%clk 0:01:48.9]} 23...
Nxc5 {[%clk 0:01:46.9]} 24. dxc5 {[%clk 0:01:49.6]} 24... Rxc5 {[%clk
0:01:48.4]} 25. Rc3 {[%clk 0:01:45.8]} 25... Rbc8 {[%clk 0:01:45.3]} 26. Nf3
{[%clk 0:01:29.4]} 26... Qb4 {[%clk 0:01:31.6]} 27. Rc1 {[%clk 0:01:26.1]} 27...
Rxc3 {[%clk 0:01:28.6]} 28. bxc3 {[%clk 0:01:28]} 28... Qa3 {[%clk 0:01:30]} 29.
Nd4 {[%clk 0:01:20.8]} 29... Bd3 {[%clk 0:01:27.4]} 30. Qd2 {[%clk 0:01:21.3]}
30... Be4 {[%clk 0:01:26.4]} 31. f5 {[%clk 0:01:16]} 31... Qxa4 {[%clk 0:01:25]}
32. f6 {[%clk 0:01:08.5]} 32... Qe8 {[%clk 0:01:16.8]} 33. f3 {[%clk 0:01:03.5]}
33... Qe5 {[%clk 0:01:09.2]} 34. fxe4 {[%clk 0:00:57.4]} 34... Qxg3+ {[%clk
0:01:06.2]} 35. Kf1 {[%clk 0:00:58.3]} 35... Qh3+ {[%clk 0:01:07.1]} 36. Qg2
{[%clk 0:00:50.3]} 36... Qd3+ {[%clk 0:01:06.6]} 37. Qe2 {[%clk 0:00:37.7]}
37... Qh3+ {[%clk 0:01:04.1]} 38. Qg2 {[%clk 0:00:34.4]} 38... Qd3+ {[%clk
0:01:04.9]} 39. Ne2 {[%clk 0:00:34.3]} 39... dxe4 {[%clk 0:01:01.2]} 40. Ke1
{[%clk 0:00:29.5]} 40... a4 {[%clk 0:00:59.1]} 41. Rd1 {[%clk 0:00:29.3]} 41...
Qe3 {[%clk 0:00:53.5]} 42. Qg3 {[%clk 0:00:27.2]} 42... Qxg3+ {[%clk 0:00:49.3]}
43. Nxg3 {[%clk 0:00:27.7]} 43... Rxc3 {[%clk 0:00:51.2]} 44. Ne2 {[%clk
0:00:24.3]} 44... Rc6 {[%clk 0:00:49.9]} 45. Rd4 {[%clk 0:00:22.4]} 45... Rxf6
{[%clk 0:00:48.5]} 46. Rxa4 {[%clk 0:00:22.9]} 46... Re6 {[%clk 0:00:49.5]} 47.
Nf4 {[%clk 0:00:23.2]} 47... Re8 {[%clk 0:00:49.9]} 48. Ke2 {[%clk 0:00:23.6]}
48... Kg7 {[%clk 0:00:49.9]} 49. Ke3 {[%clk 0:00:24.5]} 49... Re7 {[%clk
0:00:47.7]} 50. Ra6 {[%clk 0:00:23.3]} 50... Kg8 {[%clk 0:00:44.6]} 51. Nd5
{[%clk 0:00:23.6]} 51... Re6 {[%clk 0:00:43.5]} 52. Ra7 {[%clk 0:00:23]} 52...
Re5 {[%clk 0:00:42.1]} 53. Nf6+ {[%clk 0:00:22.4]} 53... Kg7 {[%clk 0:00:42]}
54. Nxe4 {[%clk 0:00:22.4]} 54... Rf5 {[%clk 0:00:42.6]} 55. Nd6 {[%clk
0:00:22.4]} 55... Rf1 {[%clk 0:00:41.7]} 56. Ke2 {[%clk 0:00:23.2]} 56... Rf4
{[%clk 0:00:42.3]} 57. Ke3 {[%clk 0:00:24]} 57... Rf1 {[%clk 0:00:42.9]} 58. Rb7
{[%clk 0:00:23.3]} 58... Kg8 {[%clk 0:00:43.4]} 59. Ne4 {[%clk 0:00:22.8]} 59...
Kg7 {[%clk 0:00:43.4]} 60. Ke2 {[%clk 0:00:22.8]} 60... Rf4 {[%clk 0:00:44.2]}
61. Ke3 {[%clk 0:00:24]} 61... Rf1 {[%clk 0:00:45]} 62. Ng3 {[%clk 0:00:23.9]}
62... Rf6 {[%clk 0:00:44.1]} 63. Rc7 {[%clk 0:00:24.8]} 63... Kf8 {[%clk
0:00:44.2]} 64. Ne4 {[%clk 0:00:25]} 64... Rf5 {[%clk 0:00:44]} 65. Nd6 {[%clk
0:00:23]} 65... Rf1 {[%clk 0:00:44.3]} 66. Nc4 {[%clk 0:00:23.5]} 66... Kg8
{[%clk 0:00:41.7]} 67. Nd2 {[%clk 0:00:22.4]} 67... Rf6 {[%clk 0:00:41.8]} 68.
Nf3 {[%clk 0:00:23]} 68... Rf5 {[%clk 0:00:41.2]} 69. Ke4 {[%clk 0:00:23.6]}
69... Kf8 {[%clk 0:00:40]} 70. Ke3 {[%clk 0:00:22.3]} 70... Kg8 {[%clk
0:00:40.9]} 71. Kf2 {[%clk 0:00:23.3]} 71... Kg7 {[%clk 0:00:41.7]} 72. Kg3
{[%clk 0:00:24.4]} 72... Kg8 {[%clk 0:00:41.5]} 73. Kg4 {[%clk 0:00:25.7]} 73...
Kg7 {[%clk 0:00:41.6]} 74. Nd4 {[%clk 0:00:26.1]} 74... Rf1 {[%clk 0:00:42.5]}
75. Nf3 {[%clk 0:00:27]} 75... Kg8 {[%clk 0:00:41.9]} 76. Kg3 {[%clk 0:00:28.2]}
76... f6 {[%clk 0:00:38.8]} 77. Nd4 {[%clk 0:00:25.2]} 77... Re1 {[%clk
0:00:36]} 78. Kf3 {[%clk 0:00:24.4]} 78... Kf8 {[%clk 0:00:35.8]} 79. Ne2 {[%clk
0:00:25.3]} 79... Rf1+ {[%clk 0:00:35.2]} 80. Ke4 {[%clk 0:00:24.1]} 80... Rf5
{[%clk 0:00:36.2]} 81. Nf4 {[%clk 0:00:22.9]} 81... Re5+ {[%clk 0:00:30.2]} 82.
Kd4 {[%clk 0:00:23.9]} 82... Ra5 {[%clk 0:00:27.6]} 83. Nxg6+ {[%clk 0:00:22.8]}
83... Kg8 {[%clk 0:00:29]} 84. Ke4 {[%clk 0:00:19.7]} 84... Rb5 {[%clk
0:00:25.6]} 85. Ne7+ {[%clk 0:00:18.8]} 85... Kf8 {[%clk 0:00:25.5]} 86. Nf5
{[%clk 0:00:18.8]} 86... Kg8 {[%clk 0:00:22.8]} 87. Kf4 {[%clk 0:00:17.1]} 87...
Rb4+ {[%clk 0:00:23.2]} 88. Kf3 {[%clk 0:00:17.7]} 88... Kf8 {[%clk 0:00:24.4]}
89. Ne3 {[%clk 0:00:17.6]} 89... Kg8 {[%clk 0:00:25.1]} 90. Nd5 {[%clk
0:00:17.2]} 90... Rb1 {[%clk 0:00:22.5]} 91. Kg4 {[%clk 0:00:14.1]} 91... Kf8
{[%clk 0:00:24.4]} 92. Kf5 {[%clk 0:00:14.7]} 92... Rf1+ {[%clk 0:00:25.4]} 93.
Nf4 {[%clk 0:00:13.9]} 93... Ke8 {[%clk 0:00:26.2]} 94. Ra7 {[%clk 0:00:14.3]}
94... Kd8 {[%clk 0:00:27.5]} 95. Ra4 {[%clk 0:00:15.1]} 95... Kc7 {[%clk
0:00:28.1]} 96. Rd4 {[%clk 0:00:14.3]} 96... Kb6 {[%clk 0:00:29.1]} 97. Kxf6
{[%clk 0:00:14.4]} 97... Kb5 {[%clk 0:00:30.4]} 98. Ke5 {[%clk 0:00:14.7]} 98...
Rh1 {[%clk 0:00:30.8]} 99. Rd8 {[%clk 0:00:13.3]} 99... Rg1 {[%clk 0:00:32]}
100. Nd3 {[%clk 0:00:11.2]} 100... Rg5+ {[%clk 0:00:32]} 101. Kd4 {[%clk
0:00:11.8]} 101... Rg4+ {[%clk 0:00:33.3]} 102. Kc3 {[%clk 0:00:13]} 102... Rh4
{[%clk 0:00:34.1]} 103. Rb8+ {[%clk 0:00:13.2]} 103... Kc6 {[%clk 0:00:35.3]}
104. Ne5+ {[%clk 0:00:13]} 104... Kd5 {[%clk 0:00:36.2]} 105. Rb5+ {[%clk
0:00:13.1]} 105... Ke6 {[%clk 0:00:36.8]} 106. Nd3 {[%clk 0:00:12.9]} 106... Rh3
{[%clk 0:00:37.9]} 107. Kd4 {[%clk 0:00:12.8]} 107... Rh4+ {[%clk 0:00:38.6]}
108. Ke3 {[%clk 0:00:13.7]} 108... Kd6 {[%clk 0:00:39.7]} 109. Nf4 {[%clk
0:00:14.4]} 109... Kc6 {[%clk 0:00:39.8]} 110. Rf5 {[%clk 0:00:15.2]} 110... Rh1
{[%clk 0:00:40.6]} 111. Kd4 {[%clk 0:00:15.9]} 111... Rd1+ {[%clk 0:00:41.4]}
112. Nd3 {[%clk 0:00:17.1]} 112... Rh1 {[%clk 0:00:42.8]} 113. Rf6+ {[%clk
0:00:18.2]} 113... Kd7 {[%clk 0:00:43.9]} 114. Kd5 {[%clk 0:00:19]} 114... Ke7
{[%clk 0:00:44]} 115. Rf5 {[%clk 0:00:20.2]} 115... Rd1 {[%clk 0:00:43.9]} 116.
Rf3 {[%clk 0:00:21.2]} 116... Kd7 {[%clk 0:00:43.6]} 117. Rh3 {[%clk 0:00:21]}
117... Kc7 {[%clk 0:00:44.2]} 118. Kc5 {[%clk 0:00:22.1]} 118... Kd7 {[%clk
0:00:44.9]} 119. Re3 {[%clk 0:00:21.5]} 119... Rd2 {[%clk 0:00:44.4]} 120. Nb4
{[%clk 0:00:21.8]} 120... Rd1 {[%clk 0:00:44.4]} 121. Nd5 {[%clk 0:00:19.6]}
121... Rc1+ {[%clk 0:00:44.2]} 122. Kd4 {[%clk 0:00:20.7]} 122... Kd6 {[%clk
0:00:45.1]} 123. Nc3 {[%clk 0:00:20.9]} 123... Rc2 {[%clk 0:00:44]} 124. Ne4+
{[%clk 0:00:20.1]} 124... Ke6 {[%clk 0:00:43.3]} 125. Rf3 {[%clk 0:00:19.3]}
125... Rc1 {[%clk 0:00:43]} 126. Rf6+ {[%clk 0:00:19.2]} 126... Ke7 {[%clk
0:00:43.2]} 127. Ra6 {[%clk 0:00:19.5]} 127... Rh1 {[%clk 0:00:43.4]} 128. Ra7+
{[%clk 0:00:14.6]} 128... Ke6 {[%clk 0:00:43.5]} 129. Ra6+ {[%clk 0:00:15.3]}
129... Ke7 {[%clk 0:00:44.1]} 130. Nc3 {[%clk 0:00:15.1]} 130... Rh4+ {[%clk
0:00:44.3]} 131. Kc5 {[%clk 0:00:15]} 131... Rh5+ {[%clk 0:00:45.2]} 132. Nd5+
{[%clk 0:00:16]} 132... Kf7 {[%clk 0:00:43.8]} 133. Kd4 {[%clk 0:00:15.8]}
133... Rh4+ {[%clk 0:00:43.6]} 134. Ke5 {[%clk 0:00:17]} 134... Rh5+ {[%clk
0:00:44.9]} 135. Ke4 {[%clk 0:00:16.9]} 135... Rh1 {[%clk 0:00:46.4]} 136. Kf5
{[%clk 0:00:17.1]} 136... Rh5+ {[%clk 0:00:45.5]} 137. Ke4 {[%clk 0:00:18.6]}
137... Rh1 {[%clk 0:00:46.6]} 138. Rf6+ {[%clk 0:00:19.5]} 138... Ke8 {[%clk
0:00:46]} 139. Ke5 {[%clk 0:00:19.3]} 139... Kd7 {[%clk 0:00:46.3]} 140. Rd6+
{[%clk 0:00:18]} 140... Kc8 {[%clk 0:00:45.8]} 141. Rb6 {[%clk 0:00:17.5]}
141... Kd7 {[%clk 0:00:45.2]} 142. Rd6+ {[%clk 0:00:11]} 142... Kc8 {[%clk
0:00:45.8]} 143. Kd4 {[%clk 0:00:10.7]} 143... Kb7 {[%clk 0:00:43.2]} 144. Rb6+
{[%clk 0:00:08.9]} 144... Ka7 {[%clk 0:00:40]} 145. Rb2 {[%clk 0:00:09.2]}
145... Rc1 {[%clk 0:00:36.8]} 146. Nc3 {[%clk 0:00:07]} 146... Ka8 {[%clk
0:00:33.5]} 147. Ne4 {[%clk 0:00:07]} 147... Ka7 {[%clk 0:00:33.2]} 148. Nc5
{[%clk 0:00:07.8]} 148... Rh1 {[%clk 0:00:32.2]} 149. Kd5 {[%clk 0:00:08.3]}
149... Rh6 {[%clk 0:00:29.4]} 150. Ne6 {[%clk 0:00:05.7]} 150... Ka6 {[%clk
0:00:26.7]} 151. Nd4 {[%clk 0:00:05.5]} 151... Ka5 {[%clk 0:00:25.9]} 152. Kc4
{[%clk 0:00:05.9]} 152... Rh8 {[%clk 0:00:22.1]} 153. Nc6+ {[%clk 0:00:06.2]}
153... Ka6 {[%clk 0:00:22.8]} 154. Ne5 {[%clk 0:00:06.6]} 154... Rc8+ {[%clk
0:00:22.4]} 155. Kd5 {[%clk 0:00:07.6]} 155... Rc1 {[%clk 0:00:22.6]} 156. Nc4
{[%clk 0:00:08.2]} 156... Rh1 {[%clk 0:00:23.4]} 157. Kc6 {[%clk 0:00:08.6]}
157... Rh6+ {[%clk 0:00:23.3]} 158. Nd6 {[%clk 0:00:09.7]} 158... Ka5 {[%clk
0:00:24.6]} 159. Kc5 {[%clk 0:00:10.7]} 159... Rh5+ {[%clk 0:00:25.2]} 160. Kc6
{[%clk 0:00:11.1]} 160... Ka4 {[%clk 0:00:26.1]} 161. Rb8 {[%clk 0:00:11.2]}
161... Ka3 {[%clk 0:00:27]} 162. Nc4+ {[%clk 0:00:12.1]} 162... Ka2 {[%clk
0:00:27.6]} 163. Rb4 {[%clk 0:00:11.8]} 163... Rh3 {[%clk 0:00:28.5]} 164. Kc5
{[%clk 0:00:11.4]} 164... Rb3 {[%clk 0:00:29]} 165. Ra4+ {[%clk 0:00:12.5]}
165... Kb1 {[%clk 0:00:30]} 166. Nd2+ {[%clk 0:00:14]} 166... Kc2 {[%clk
0:00:31.3]} 167. Nxb3 {[%clk 0:00:15.9]} 1-0

[Event "*** Titled Tuesday Blitz"]
[Site "Chess.com"]
[Date "2018.05.01"]
[Round "3"]
[White "VerdeNotte"]
[Black "Rokis13"]
[Result "1-0"]
[WhiteElo "2622"]
[BlackElo "2452"]
[TimeControl "180+2"]
[EndTime "13:34:55 PDT"]
[Termination "VerdeNotte won by resignation"]

1. Nf3 {[%clk 0:03:01.9]} 1... d6 {[%clk 0:02:59.5]} 2. e4 {[%clk 0:03:00]} 2...
Bg4 {[%clk 0:02:58]} 3. d4 {[%clk 0:02:59]} 3... e6 {[%clk 0:02:58.9]} 4. c4
{[%clk 0:02:56.9]} 4... d5 {[%clk 0:02:59.4]} 5. Qa4+ {[%clk 0:02:45.2]} 5...
Nc6 {[%clk 0:02:47.3]} 6. Ne5 {[%clk 0:02:42.7]} 6... Bh5 {[%clk 0:02:29.4]} 7.
cxd5 {[%clk 0:02:38.4]} 7... Bb4+ {[%clk 0:02:23.6]} 8. Nc3 {[%clk 0:02:11.9]}
8... Bxc3+ {[%clk 0:02:20]} 9. bxc3 {[%clk 0:02:11.8]} 9... exd5 {[%clk
0:02:19.7]} 10. Nxc6 {[%clk 0:02:00.6]} 10... bxc6 {[%clk 0:02:20]} 11. Qxc6+
{[%clk 0:02:00.8]} 11... Kf8 {[%clk 0:02:21.2]} 12. Ba3+ {[%clk 0:01:57.4]}
12... Ne7 {[%clk 0:02:22.2]} 13. Qxd5 {[%clk 0:01:42.5]} 13... Qxd5 {[%clk
0:02:13.5]} 14. exd5 {[%clk 0:01:44.4]} 14... Rd8 {[%clk 0:02:14.5]} 15. Bc4
{[%clk 0:01:41.2]} 15... Ke8 {[%clk 0:02:15.6]} 16. O-O {[%clk 0:01:28.3]} 16...
Kd7 {[%clk 0:02:14.6]} 17. Bb5+ {[%clk 0:01:25.5]} 17... c6 {[%clk 0:02:15.9]}
18. dxc6+ {[%clk 0:01:26.3]} 1-0

[Event "*** Titled Tuesday Blitz"]
[Site "Chess.com"]
[Date "2018.05.01"]
[Round "3"]
[White "BrizuelaRonald"]
[Black "Albertu"]
[Result "1-0"]
[WhiteElo "2519"]
[BlackElo "2299"]
[TimeControl "180+2"]
[EndTime "13:35:43 PDT"]
[Termination "BrizuelaRonald won by resignation"]

1. d4 {[%clk 0:02:53.3]} 1... Nf6 {[%clk 0:03:00.7]} 2. c4 {[%clk 0:02:54.7]}
2... c5 {[%clk 0:03:02.1]} 3. d5 {[%clk 0:02:55.6]} 3... b5 {[%clk 0:03:03.6]}
4. cxb5 {[%clk 0:02:56.2]} 4... a6 {[%clk 0:03:05.2]} 5. bxa6 {[%clk 0:02:57.4]}
5... g6 {[%clk 0:03:05.7]} 6. Nc3 {[%clk 0:02:58.1]} 6... Bg7 {[%clk 0:03:06.9]}
7. Nf3 {[%clk 0:02:59]} 7... O-O {[%clk 0:03:08.2]} 8. e4 {[%clk 0:02:52.4]}
8... Qa5 {[%clk 0:03:09]} 9. Bd2 {[%clk 0:02:46.3]} 9... Bxa6 {[%clk 0:03:10.2]}
10. Bxa6 {[%clk 0:02:45.3]} 10... Qxa6 {[%clk 0:03:10.4]} 11. Qe2 {[%clk
0:02:46.8]} 11... d6 {[%clk 0:03:11.2]} 12. a4 {[%clk 0:02:41.9]} 12... Nbd7
{[%clk 0:03:06.1]} 13. Nb5 {[%clk 0:02:37.6]} 13... Nxe4 {[%clk 0:02:41.7]} 14.
Qxe4 {[%clk 0:02:34.2]} 14... Qxb5 {[%clk 0:02:42.5]} 15. axb5 {[%clk
0:02:34.7]} 15... Rxa1+ {[%clk 0:02:43.8]} 16. Ke2 {[%clk 0:02:31.9]} 16... Rxh1
{[%clk 0:02:44.9]} 17. Qxe7 {[%clk 0:02:26.8]} 17... Nf6 {[%clk 0:02:33.6]} 18.
Qxd6 {[%clk 0:02:11]} 18... Ne4 {[%clk 0:02:19.4]} 19. Qc6 {[%clk 0:02:06.2]}
19... Rb1 {[%clk 0:02:10.3]} 20. d6 {[%clk 0:02:03.6]} 20... Nxd2 {[%clk
0:02:08.4]} 21. Nxd2 {[%clk 0:02:02.2]} 21... Rxb2 {[%clk 0:02:09.7]} 22. Kd3
{[%clk 0:01:59]} 22... Rb8 {[%clk 0:01:58.4]} 23. d7 {[%clk 0:01:55.9]} 23...
R2xb5 {[%clk 0:01:51.9]} 24. Qxb5 {[%clk 0:01:52.7]} 1-0

[Event "*** Titled Tuesday Blitz"]
[Site "Chess.com"]
[Date "2018.05.01"]
[Round "3"]
[White "MikeSailer"]
[Black "Morshynska"]
[Result "0-1"]
[WhiteElo "1926"]
[BlackElo "2090"]
[TimeControl "180+2"]
[EndTime "13:36:04 PDT"]
[Termination "Morshynska won by resignation"]

1. e4 {[%clk 0:03:01.7]} 1... e5 {[%clk 0:03:00.1]} 2. Nc3 {[%clk 0:03:00.7]}
2... Nc6 {[%clk 0:02:59.5]} 3. Nf3 {[%clk 0:03:01.5]} 3... Nf6 {[%clk
0:02:59.1]} 4. Bb5 {[%clk 0:03:02.3]} 4... Bb4 {[%clk 0:02:58.8]} 5. d3 {[%clk
0:03:02.7]} 5... Bxc3+ {[%clk 0:02:38.4]} 6. bxc3 {[%clk 0:03:03.1]} 6... d6
{[%clk 0:02:40.3]} 7. h3 {[%clk 0:03:02.1]} 7... Bd7 {[%clk 0:02:40.2]} 8. Bg5
{[%clk 0:03:02.3]} 8... h6 {[%clk 0:02:40.4]} 9. Be3 {[%clk 0:03:02.4]} 9... Ne7
{[%clk 0:02:23.2]} 10. Qd2 {[%clk 0:03:01.3]} 10... Bxb5 {[%clk 0:02:23.3]} 11.
Rb1 {[%clk 0:02:59.7]} 11... Bc6 {[%clk 0:02:22.4]} 12. O-O {[%clk 0:02:59.4]}
12... Qd7 {[%clk 0:02:22.5]} 13. d4 {[%clk 0:02:59.1]} 13... Nxe4 {[%clk
0:02:21.5]} 14. Qd3 {[%clk 0:02:59.7]} 14... exd4 {[%clk 0:01:31.9]} 15. cxd4
{[%clk 0:02:51]} 15... O-O {[%clk 0:01:19.9]} 16. c4 {[%clk 0:02:50.7]} 16... d5
{[%clk 0:01:05.5]} 17. Ne5 {[%clk 0:02:50.9]} 17... Qe6 {[%clk 0:00:53.2]} 18.
f3 {[%clk 0:02:42]} 18... Nd6 {[%clk 0:00:47.9]} 19. Nxc6 {[%clk 0:02:23.9]}
19... Nxc6 {[%clk 0:00:44.5]} 20. Rxb7 {[%clk 0:02:21]} 20... Nxb7 {[%clk
0:00:43.9]} 0-1

[Event "*** Titled Tuesday Blitz"]
[Site "Chess.com"]
[Date "2018.05.01"]
[Round "3"]
[White "Al_Shima"]
[Black "PlotnikovPavel"]
[Result "1-0"]
[WhiteElo "2408"]
[BlackElo "2247"]
[TimeControl "180+2"]
[EndTime "13:36:22 PDT"]
[Termination "Al_Shima won by resignation"]

1. b3 {[%clk 0:03:01.9]} 1... Nf6 {[%clk 0:03:00]} 2. Bb2 {[%clk 0:03:03.1]}
2... g6 {[%clk 0:03:01.5]} 3. Bxf6 {[%clk 0:03:03.9]} 3... exf6 {[%clk
0:03:02.2]} 4. c4 {[%clk 0:03:05.4]} 4... Bg7 {[%clk 0:03:03.6]} 5. Nc3 {[%clk
0:03:06.8]} 5... O-O {[%clk 0:03:05]} 6. g3 {[%clk 0:03:08.4]} 6... f5 {[%clk
0:03:03.6]} 7. Bg2 {[%clk 0:03:09.2]} 7... Nc6 {[%clk 0:03:04.4]} 8. e3 {[%clk
0:03:10.2]} 8... d6 {[%clk 0:03:04.4]} 9. Nge2 {[%clk 0:03:10.9]} 9... Ne5
{[%clk 0:03:05.3]} 10. d4 {[%clk 0:03:11.2]} 10... Ng4 {[%clk 0:03:06.3]} 11. h3
{[%clk 0:03:12.2]} 11... Nf6 {[%clk 0:03:07.5]} 12. Rc1 {[%clk 0:03:06.8]} 12...
Re8 {[%clk 0:03:08.6]} 13. Qc2 {[%clk 0:03:07.1]} 13... c6 {[%clk 0:03:08.6]}
14. O-O {[%clk 0:03:03.9]} 14... a5 {[%clk 0:03:08.6]} 15. a3 {[%clk 0:03:04.2]}
15... Bd7 {[%clk 0:03:07.6]} 16. b4 {[%clk 0:03:03.6]} 16... axb4 {[%clk
0:03:07.7]} 17. axb4 {[%clk 0:03:05.5]} 17... Qe7 {[%clk 0:03:06.7]} 18. d5
{[%clk 0:02:59.9]} 18... Ne4 {[%clk 0:03:04.9]} 19. Rfd1 {[%clk 0:02:29.9]}
19... Qe5 {[%clk 0:02:59.8]} 20. Nxe4 {[%clk 0:02:17.5]} 20... fxe4 {[%clk
0:03:00.2]} 21. dxc6 {[%clk 0:02:14.7]} 21... bxc6 {[%clk 0:03:00.2]} 22. Qd2
{[%clk 0:02:11.6]} 22... Bf8 {[%clk 0:02:55.4]} 23. Nc3 {[%clk 0:02:09.8]} 23...
f5 {[%clk 0:02:54]} 24. h4 {[%clk 0:02:07.8]} 24... Be6 {[%clk 0:02:52.9]} 25.
Bf1 {[%clk 0:02:08.4]} 25... Red8 {[%clk 0:02:51.4]} 26. b5 {[%clk 0:02:03.9]}
26... cxb5 {[%clk 0:02:39.4]} 27. cxb5 {[%clk 0:02:04.5]} 27... Bb3 {[%clk
0:02:31.7]} 28. Re1 {[%clk 0:02:00.9]} 28... d5 {[%clk 0:02:31.8]} 29. Rb1
{[%clk 0:01:59.4]} 29... Bc4 {[%clk 0:02:27.4]} 30. Ne2 {[%clk 0:01:57.6]} 30...
Ra2 {[%clk 0:02:24.3]} 31. Qd4 {[%clk 0:01:56.4]} 31... Qd6 {[%clk 0:02:11.4]}
32. Nf4 {[%clk 0:01:44.6]} 32... Bg7 {[%clk 0:02:08.9]} 33. Qd1 {[%clk
0:01:42.4]} 33... Bxf1 {[%clk 0:02:08.1]} 34. Rxf1 {[%clk 0:01:43.2]} 34... d4
{[%clk 0:02:09.1]} 35. Qb3+ {[%clk 0:01:40.3]} 1-0

[Event "*** Titled Tuesday Blitz"]
[Site "Chess.com"]
[Date "2018.05.01"]
[Round "3"]
[White "temiksmozg"]
[Black "FairChess_on_YouTube"]
[Result "0-1"]
[WhiteElo "2590"]
[BlackElo "2880"]
[TimeControl "180+2"]
[EndTime "13:36:25 PDT"]
[Termination "FairChess_on_YouTube won by checkmate"]

1. d4 {[%clk 0:03:01.9]} 1... d5 {[%clk 0:03:00.4]} 2. c4 {[%clk 0:03:02.4]}
2... c6 {[%clk 0:03:01.6]} 3. Nf3 {[%clk 0:03:02.8]} 3... Nf6 {[%clk 0:03:02.5]}
4. Nc3 {[%clk 0:03:02.3]} 4... a6 {[%clk 0:03:03.6]} 5. c5 {[%clk 0:03:03]} 5...
Bf5 {[%clk 0:03:02.2]} 6. Bf4 {[%clk 0:03:02.6]} 6... Nbd7 {[%clk 0:03:01]} 7.
h3 {[%clk 0:03:02.2]} 7... g6 {[%clk 0:03:01.7]} 8. e3 {[%clk 0:03:03.1]} 8...
Bg7 {[%clk 0:03:02.2]} 9. Nd2 {[%clk 0:03:02.8]} 9... O-O {[%clk 0:03:01.1]} 10.
g4 {[%clk 0:03:03.3]} 10... Be6 {[%clk 0:02:56.6]} 11. Bg3 {[%clk 0:02:59.9]}
11... Ne4 {[%clk 0:02:54]} 12. Ndxe4 {[%clk 0:02:35.3]} 12... dxe4 {[%clk
0:02:55.9]} 13. Nxe4 {[%clk 0:02:35.3]} 13... Bd5 {[%clk 0:02:54.4]} 14. f3
{[%clk 0:02:36.4]} 14... e5 {[%clk 0:02:44.8]} 15. Nc3 {[%clk 0:02:28.9]} 15...
exd4 {[%clk 0:02:43.4]} 16. exd4 {[%clk 0:02:28.8]} 16... Re8+ {[%clk
0:02:26.1]} 17. Kf2 {[%clk 0:02:12.2]} 17... Nf8 {[%clk 0:02:26.9]} 18. Qd2
{[%clk 0:01:25.6]} 18... Ne6 {[%clk 0:02:21.7]} 19. Ne2 {[%clk 0:01:21]} 19...
Bxf3 {[%clk 0:02:13.6]} 20. Kxf3 {[%clk 0:01:13.4]} 20... Ng5+ {[%clk
0:02:08.9]} 21. Kf4 {[%clk 0:00:20.6]} 21... Re4# {[%clk 0:02:07.1]} 0-1

[Event "*** Titled Tuesday Blitz"]
[Site "Chess.com"]
[Date "2018.05.01"]
[Round "3"]
[White "Annawel"]
[Black "aa175"]
[Result "1-0"]
[WhiteElo "2801"]
[BlackElo "1863"]
[TimeControl "180+2"]
[EndTime "13:37:02 PDT"]
[Termination "Annawel won by resignation"]

1. Nf3 {[%clk 0:03:00.5]} 1... g6 {[%clk 0:02:56.6]} 2. d4 {[%clk 0:03:01.1]}
2... Bg7 {[%clk 0:02:58.5]} 3. e4 {[%clk 0:03:01.3]} 3... d6 {[%clk 0:02:57.1]}
4. Bc4 {[%clk 0:03:01.6]} 4... Nf6 {[%clk 0:02:57]} 5. Qe2 {[%clk 0:03:02.7]}
5... O-O {[%clk 0:02:57.9]} 6. Bb3 {[%clk 0:02:59.6]} 6... Nc6 {[%clk
0:02:55.8]} 7. h3 {[%clk 0:03:00.3]} 7... e5 {[%clk 0:02:54.7]} 8. dxe5 {[%clk
0:02:59.1]} 8... Nxe5 {[%clk 0:02:55.8]} 9. O-O {[%clk 0:02:58.3]} 9... Qe7
{[%clk 0:02:52.5]} 10. Nc3 {[%clk 0:02:57.8]} 10... Re8 {[%clk 0:02:52.1]} 11.
Re1 {[%clk 0:02:55.8]} 11... c6 {[%clk 0:02:51.1]} 12. Bg5 {[%clk 0:02:55.3]}
12... h6 {[%clk 0:02:49.5]} 13. Bh4 {[%clk 0:02:56]} 13... g5 {[%clk 0:02:47.1]}
14. Bg3 {[%clk 0:02:56.8]} 14... Nxf3+ {[%clk 0:02:46.3]} 15. Qxf3 {[%clk
0:02:57.7]} 15... Be6 {[%clk 0:02:46.6]} 16. e5 {[%clk 0:02:26.4]} 16... dxe5
{[%clk 0:02:40.4]} 17. Bxe5 {[%clk 0:02:27.4]} 17... Rad8 {[%clk 0:02:27.6]} 18.
Re2 {[%clk 0:02:22.6]} 18... Bxb3 {[%clk 0:01:41.4]} 19. axb3 {[%clk 0:02:23.4]}
19... Qxe5 {[%clk 0:01:31.2]} 20. Rxe5 {[%clk 0:02:24.1]} 20... Rxe5 {[%clk
0:01:33.1]} 21. Rd1 {[%clk 0:02:22.2]} 21... Rxd1+ {[%clk 0:01:29.7]} 22. Qxd1
{[%clk 0:02:24.1]} 22... Nd5 {[%clk 0:01:30.6]} 23. g3 {[%clk 0:02:17.3]} 23...
Nxc3 {[%clk 0:01:27.1]} 24. bxc3 {[%clk 0:02:19.2]} 24... Re6 {[%clk 0:01:18.9]}
25. Qd8+ {[%clk 0:02:18.7]} 25... Kh7 {[%clk 0:01:19.8]} 26. Qd7 {[%clk
0:02:19.8]} 26... b5 {[%clk 0:01:02.3]} 27. Qxf7 {[%clk 0:02:18.4]} 27... Re1+
{[%clk 0:01:02.7]} 28. Kg2 {[%clk 0:02:19.1]} 28... Re2 {[%clk 0:00:58.8]} 29.
Qf3 {[%clk 0:02:19.4]} 29... Re6 {[%clk 0:00:56.2]} 30. Qf5+ {[%clk 0:02:19.9]}
30... Rg6 {[%clk 0:00:56.8]} 31. Qd3 {[%clk 0:02:10.1]} 31... a6 {[%clk
0:00:54.7]} 32. Kf3 {[%clk 0:02:07.9]} 32... Bf6 {[%clk 0:00:50.3]} 33. Kg4
{[%clk 0:02:08.8]} 33... Be5 {[%clk 0:00:39.1]} 34. Kh5 {[%clk 0:02:09.6]} 1-0